Cogmind - Beta 13 @@@ ROGUE MODE // 2024.05.27 @ 14:17:43 Player: karotgaemin Result: Destroyed by L-41 Fighter with Axe Performance ------------- Evolutions (3) 1500 Regions Visited (4) 800 Robots Destroyed (48) 240 Value Destroyed (1640) 1640 Prototype IDs (4) 80 Alien Tech Used (0) 0 Bonus (0) 0 TOTAL SCORE: 4260 Bonus ------- None Cogmind --------- Core Integrity 0/700 Matter 183/300 Energy 22/100 System Corruption 0% Temperature Cool (0) Movement Core (550) Ox10 Location -7/Factory Parts ------- > --- POWER (2) -------- (None) > --- PROPULSION (3) --- (None) > --- UTILITY (6) ------ Large Storage Unit Visual Processing Unit Improved Terrain Scanner Terrain Scan Processor Hacking Suite > --- WEAPON (2) ------- Heavy Ion Cannon Rocket Launcher > --- INVENTORY (15) --- Improved Deuterium Engine Heavy Deuterium Engine Micro Nuclear Core Light Treads Advanced Treads Improved Sensor Array Weapon Cycler Microactuators EM Shotgun Peak State ------------ > --- POWER ------------ Heavy Deuterium Engine Micro Nuclear Core > --- PROPULSION ------- Armored Wheel Armored Wheel Armored Wheel > --- UTILITY ---------- Improved Heat Sink Large Storage Unit Visual Processing Unit Improved Terrain Scanner Terrain Scan Processor Hacking Suite > --- WEAPON ----------- Precision Shock Rifle Heavy Ion Cannon > --- INVENTORY -------- Improved Deuterium Engine Improved Deuterium Engine Light Treads Advanced Treads Armored Wheel Heat Sink Microactuators EM Shotgun Plasma Cannon Flak Cannon Rocket Launcher Heavy Missile Launcher Heavy Missile Launcher Power Maul [Rating: 42] Favorites ----------- Power Ion Engine Engine Ion Engine Power Core Light Nuclear Core Propulsion Armored Wheel Treads Light Treads Wheel Armored Wheel Utility Large Storage Unit Device Improved Heat Sink Storage Large Storage Unit Processor Terrain Scan Processor Hackware Hacking Suite Weapon Assault Rifle Energy Gun EM Shotgun Energy Cannon Plasma Cannon Ballistic Gun Assault Rifle Ballistic Cannon Flak Cannon Launcher Heavy Missile Launcher Impact Weapon Power Maul Build | -11 -10 -9 -8 -7 ------- Run | Yrd Mat Mat Mat Fac Slots Evolved 6 | . . 2 2 2 Power 1 | . . . 1 . Propulsion 1 | . . . . 1 Utility 4 | . . 2 1 1 Weapon . | . . . . . Parts Attached 77 | 6 13 18 15 25 Power 14 | 1 . 3 4 6 Engine 10 | 1 . 3 4 2 Core 4 | . . . . 4 Reactor . | . . . . . Propulsion 26 | 2 8 6 3 7 Treads 9 | . 3 3 1 2 Leg . | . . . . . Wheel 17 | 2 5 3 2 5 Hover . | . . . . . Flight . | . . . . . Utility 13 | 1 4 3 4 1 Device 7 | . 1 3 3 . Storage 3 | 1 2 . . . Processor 2 | . 1 . . 1 Hackware 1 | . . . 1 . Protection . | . . . . . Artifact . | . . . . . Weapon 24 | 2 1 6 4 11 Energy Gun 8 | . . 5 1 2 Energy Cannon 4 | . . . . 4 Ballistic Gun 4 | 2 1 . 1 . Ballistic Cannon 2 | . . . 1 1 Launcher 4 | . . 1 . 3 Special Weapon . | . . . . . Impact Weapon 2 | . . . 1 1 Slashing Weapon . | . . . . . Piercing Weapon . | . . . . . Special Melee Weapon . | . . . . . Unidentified Prototypes 2 | . . . . 2 Parts Lost 18 | . 1 6 3 8 Power 4 | . . 1 2 1 Propulsion 8 | . 1 3 . 4 Utility 2 | . . . 1 1 Weapon 4 | . . 2 . 2 Highest Loss Streak 5 | . 1 4 2 5 To Critical Strikes . | . . . . . Average Slot Usage (%) 95 | . 98 94 91 96 Engine 10 | . 14 10 11 7 Core 1 | . . . . 5 Treads 3 | . . 10 6 . Wheel 18 | . 27 7 11 21 Device 15 | . 12 21 16 14 Storage 10 | . 14 11 9 7 Processor 9 | . 1 11 9 15 Hackware 3 | . . . 9 7 Energy Gun 6 | . . 14 14 2 Energy Cannon 2 | . . . . 8 Ballistic Gun 9 | . 28 6 1 . Naked Turns . | . . . . . Heaviest Build 53 | 14 30 35 48 53 Greatest Support 42 | 26 40 40 42 36 Greatest Overweight (x) 9 | . 9 8 1 2 Average Overweight (x) . | . . . . 1 Largest Inventory Capacity 15 | 8 15 15 15 15 Average Capacity 13 | 7 10 15 15 15 Most Carried 15 | 3 10 11 15 15 Average Carried 9 | 1 6 7 11 13 Final Capacity 15 | 8 15 15 15 15 Final Carried 13 | 3 8 11 13 9 Class Distribution -------------------- 41% | Mutant 29% | Scavenger-Mutant 26% | Scavenger-Skirmisher Dominant Class ---------------- Mutant | -10/Materials Scavenger-Mutant | -9/Materials Scavenger-Mutant | -8/Materials Scavenger-Skirmisher | -7/Factory Resources | -11 -10 -9 -8 -7 ----------- Run | Yrd Mat Mat Mat Fac Matter Collected 1309 | 260 368 265 96 320 Remotely . | . . . . . Salvage Created 1726 | . 479 461 239 547 Parts 104 | . 27 32 12 33 Haulers Intercepted . | . . . . . Recyclers Shooed 2 | . . 2 . . Parts Field Recycled . | . . . . . Retrieved Matter . | . . . . . Parts Self-Destructed . | . . . . . Prevented . | . . . . . Kills | -11 -10 -9 -8 -7 ------- Run | Yrd Mat Mat Mat Fac Combat Hostiles Destroyed 37 | . 9 8 4 16 Guns 19 | . 9 5 3 2 Cannons 10 | . . . 1 9 AOE 8 | . . 3 . 5 Classes Destroyed 11 | . 4 3 1 3 Worker 1 | . . . . 1 Builder 3 | . 2 . . 1 Tunneler 1 | . . . 1 . Recycler 1 | . . 1 . . Operator 2 | . 1 1 . . Watcher 3 | . 1 2 . . Swarmer 7 | . . . . 7 Grunt 23 | . 9 5 3 6 Brawler 1 | . . 1 . . Sentry 5 | . . 2 1 2 Hunter 1 | . . . . 1 Best Kill Streak 4 | . 4 3 2 4 Combat Bots Only 4 | . 3 3 2 4 Max Kills in Single Turn 3 | . 1 2 1 3 Gunslinging . | . . . . . Exploded 2 | . . 2 . 2 Melee . | . . . . . Uniques/NPCs Destroyed . | . . . . . Combat | -11 -10 -9 -8 -7 -------- Run | Yrd Mat Mat Mat Fac Hostile Shots Fired 269 | . 64 35 8 162 Missed 84 | . 23 10 3 48 Damage Taken 3316 | . 487 466 252 2111 Core 992 | . 123 69 68 732 Absorbed by Shields . | . . . . . Regen/Repaired (Parts) 26 | . . . 26 . Core Remaining (%) 79 | 100 50 82 87 . Volleys Fired 118 | . 45 27 7 39 Largest 2 | . 2 2 2 2 Hottest 145 | . 40 101 108 145 Shots Fired 228 | . 90 48 14 76 Gun 161 | . 90 46 13 12 Cannon 55 | . . . 1 54 Launcher 12 | . . 2 . 10 Special . | . . . . . Kinetic 116 | . 90 17 1 8 Thermal 58 | . . 6 6 46 Explosive 12 | . . 2 . 10 Electromagnetic 42 | . . 23 7 12 Robot Hit Streak 15 | . 7 9 11 15 Robot Miss Streak 6 | . 2 6 2 4 Penetration Max . | . . . . . Secondary Targets . | . . . . . Shots Hit Robots 159 | . 60 31 13 55 Core Hits 101 | . 25 23 12 41 Critical Kills . | . . . . . Critical Parts Destroyed 2 | . . . . 2 Critical Strikes 2 | . . . . 2 Smash 2 | . . . . 2 Melee Attacks 4 | . . . . 4 Impact 4 | . . . . 4 Slashing . | . . . . . Piercing . | . . . . . Sneak Attacks . | . . . . . Combat Hostiles . | . . . . . Follow-up Attacks . | . . . . . Damage Inflicted 4105 | . 755 685 281 2384 Guns 1553 | . 755 437 193 168 Cannons 954 | . . . 21 933 Explosions 1443 | . . 248 57 1138 Melee 145 | . . . . 145 Ramming 10 | . . . 10 . Kinetic 1015 | . 755 95 21 144 Thermal 1126 | . . 195 142 789 Explosive 1220 | . . 82 . 1138 Electromagnetic 589 | . . 313 108 168 Impact 145 | . . . . 145 Slashing . | . . . . . Piercing . | . . . . . Highest Corruption . | . . . . . Average Corruption . | . . . . . Corruption Purged . | . . . . . Corruption Blocked . | . . . . . Overload Shots . | . . . . . Overflow Damage 149 | . . 4 70 75 Projectiles 12 | . . . . 12 Explosions 92 | . . 4 70 18 Melee 45 | . . . . 45 Knockbacks 8 | . . . . 8 Impact 1 | . . . . 1 Kinetic 6 | . . . . 6 Secondary 1 | . . . . 1 Self-Inflicted Damage 501 | . . 148 168 185 Shots 11 | . . 5 2 4 Rammed 1 | . . . 1 . Targets Rammed 1 | . . . 1 . Kicked . | . . . . . Crushed . | . . . . . Highest Temperature 210 | . 2 9 27 210 Average Temperature 42 | . 2 5 12 51 Received Heat Transfer 789 | . 276 165 54 294 Siege Activations . | . . . . . Robots Corrupted . | . . . . . Combat Hostiles . | . . . . . Parts Fried . | . . . . . Impact Corruptions 2 | . . . . 2 Robots Melted . | . . . . . Combat Hostiles . | . . . . . Parts Melted 3 | . . . . 3 Heat Transferred 1864 | . . 324 235 1305 Parts Sabotaged . | . . . . . Parts Stolen . | . . . . . Parts Stripped . | . . . . . Power Chain Reactions 4 | . . 3 1 . Alert | -11 -10 -9 -8 -7 ------- Run | Yrd Mat Mat Mat Fac Peak Influence 346 | . 217 333 245 346 Initial 64 | . . 45 64 20 Average 134 | . 82 207 112 165 Maximum Alert Level 1 | . 1 1 1 1 Low Security (%) 74 | 100 91 41 94 64 Level 1 25 | . 8 58 5 35 Level 2 . | . . . . . Level 3 . | . . . . . Level 4 . | . . . . . Level 5 . | . . . . . High Security . | . . . . . Max Security . | . . . . . Squads Dispatched 9 | . 3 1 1 4 Investigation 2 | . 1 . 1 . Extermination . | . . . . . Reinforcement 6 | . 2 1 . 3 Assault . | . . . . . Garrison 1 | . . . . 1 Intercept . | . . . . . Searches Triggered . | . . . . . Construction Impeded 3 | . . . . 3 Haulers Reinforced . | . . . . . Active Scanning Responses . | . . . . . Cargo Convoy Interrupts . | . . . . . Stealth | -11 -10 -9 -8 -7 --------- Run | Yrd Mat Mat Mat Fac Distress Signals 3 | . 1 1 . 1 Communications Jammed . | . . . . . Distress Signals . | . . . . . Times Spotted 55 | . 16 13 4 22 Peak Tracking Total 4 | . 3 3 2 4 Tactical Retreats 2 | . . 1 . 1 Traps | -11 -10 -9 -8 -7 ------- Run | Yrd Mat Mat Mat Fac Traps Triggered 4 | . 2 1 . 1 Indirectly . | . . . . . Trap Hack Attempts . | . . . . . Triggered . | . . . . . Disarmed . | . . . . . Reprogrammed . | . . . . . Reused . | . . . . . Traps Extracted . | . . . . . Installed . | . . . . . Triggered . | . . . . . Machines | -11 -10 -9 -8 -7 ---------- Run | Yrd Mat Mat Mat Fac Machines Disabled 8 | . . 1 3 4 Max in Single Turn 3 | . . 1 3 2 Garrison Access 2 | . . . 1 1 Machines Repaired . | . . . . . Machines Dismantled . | . . . . . Machines Sabotaged . | . . . . . Overloaded Fab Kills . | . . . . . Hacking | -11 -10 -9 -8 -7 --------- Run | Yrd Mat Mat Mat Fac Machines Accessed 9 | . 2 2 3 2 Terminals 5 | . 2 2 . 1 Fabricators . | . . . . . Repair Stations 1 | . . . 1 . Recycling Units . | . . . . . Scanalyzers 1 | . . . 1 . Garrison Access 2 | . . . 1 1 Total Hacks 28 | . 5 9 10 4 Successful 16 | . . 7 7 2 Failed 12 | . 5 2 3 2 Catastrophic . | . . . . . Database Lockouts . | . . . . . Manual . | . . . . . Terminals 15 | . 5 9 . 1 Fabricators . | . . . . . Repair Stations 3 | . . . 3 . Recycling Units . | . . . . . Scanalyzers 3 | . . . 3 . Garrison Access 7 | . . . 4 3 Terminal Hacks 8 | . . 7 . 1 Record 6 | . . 6 . . Prototype ID Bank 1 | . . 1 . . Alert Level 1 | . . . . 1 Fabricator Hacks . | . . . . . Repair Station Hacks 2 | . . . 2 . Scan Component 1 | . . . 1 . Repair 1 | . . . 1 . Recycling Unit Hacks . | . . . . . Scanalyzer 3 | . . . 3 . Insert Component 2 | . . . 2 . Analyze 1 | . . . 1 . Garrison Access Hacks 3 | . . . 2 1 Seal Access 2 | . . . 1 1 Coupler Status 1 | . . . 1 . Unauthorized Hacks . | . . . . . Terminals . | . . . . . Fabricators . | . . . . . Repair Stations . | . . . . . Recycling Units . | . . . . . Scanalyzers . | . . . . . Garrison Access . | . . . . . Data Cores Recovered 1 | . . 1 . . Used . | . . . . . Hacking Detections 6 | . 1 2 2 1 Full Trace Events 1 | . . . 1 . Feedback Events . | . . . . . Feedback Blocked . | . . . . . Robot Schematics Acquired . | . . . . . Robots Built . | . . . . . Authchips . | . . . . . Time . | . . . . . Total Robot Build Rating . | . . . . . Part Schematics Acquired 1 | . . . 1 . Parts Built . | . . . . . Authchips . | . . . . . Time . | . . . . . Total Part Build Rating . | . . . . . Parts Repaired 1 | . . . 1 . Time 38 | . . . 38 . Parts Recycled . | . . . . . Recycled Matter . | . . . . . Retrieved Matter . | . . . . . Retrieved Components . | . . . . . Parts Scanalyzed 1 | . . . 1 . Part Schematics Acquired 1 | . . . 1 . Parts Damaged . | . . . . . Bothacking | -11 -10 -9 -8 -7 ------------ Run | Yrd Mat Mat Mat Fac Used RIF Installer . | . . . . . Robots Hacked . | . . . . . Non-combat . | . . . . . Combat . | . . . . . Robot Hacks Applied . | . . . . . Relay Couplers Released . | . . . . . Fabnet Peak Effective % . | . . . . . Robots Rewired . | . . . . . Allies Hacked . | . . . . . Hacks Repelled . | . . . . . Allies | -11 -10 -9 -8 -7 -------- Run | Yrd Mat Mat Mat Fac Total Allies . | . . . . . Largest Group . | . . . . . Highest-Rated Group . | . . . . . Highest-Rated Ally . | . . . . . Total Orders . | . . . . . Ally Attacks . | . . . . . Total Damage . | . . . . . Kills . | . . . . . Allies Corrupted . | . . . . . Allies Melted . | . . . . . Intel | -11 -10 -9 -8 -7 ------- Run | Yrd Mat Mat Mat Fac Robot Analysis Total . | . . . . . Derelict Logs Recovered . | . . . . . Drone Launches . | . . . . . Drone Recoveries . | . . . . . Exploration | -11 -10 -9 -8 -7 ------------- Run | Yrd Mat Mat Mat Fac Turns Passed 2482 | 95 699 489 455 744 Spaces Moved 1573 | 91 482 258 264 478 Core 5 | 3 1 1 . . Treads 213 | . 7 116 90 . Legs . | . . . . . Wheels 1355 | 88 474 141 174 478 Hover . | . . . . . Flight . | . . . . . Fastest Speed 50 | 50 90 105 105 105 Average Speed 109 | 88 96 134 121 105 Slowest Speed 500 | 90 500 450 160 120 Overloaded Moves . | . . . . . Propulsion Burnouts . | . . . . . Robots Hopped . | . . . . . Cave-ins Triggered . | . . . . . Exploration Rate (%) 29 | 5 79 23 26 13 Regions Visited 4 Branch Regions . Pre-discovered Areas . | . . . . . Known Exits Taken . | . . . . . Unknown Exits Taken 4 | 1 1 1 1 . Scrap Searched . | . . . . . Spaces Dug . | . . . . . Terrain Destroyed 114 | . . 25 33 56 Melee . | . . . . . Projectile . | . . . . . AOE 114 | . . 25 33 56 Terrain Rammed . | . . . . . Walls Destroyed . | . . . . . Machines Disabled . | . . . . . Actions | -11 -10 -9 -8 -7 --------- Run | Yrd Mat Mat Mat Fac Total 2094 | 105 625 348 383 633 Wait 238 | . 68 32 73 65 Move 1569 | 90 481 257 263 478 Hop . | . . . . . Pick Up 65 | 9 13 13 16 14 Fast Attach . | . . . . . Attach 36 | 6 5 9 6 10 Detach 1 | . 1 . . . Swap 41 | . 8 9 9 15 Drop 21 | . 4 1 8 8 Fire 118 | . 45 27 7 39 Melee 4 | . . . . 4 Ram 1 | . . . 1 . Kick . | . . . . . Crush . | . . . . . Escape Stasis . | . . . . . Rewire . | . . . . . Trap . | . . . . . Miscellaneous . | . . . . . Route ------- -11/Scrapyard -10/Materials (discovered 3 exits: *Mat x2 / [*Min]) -9/Materials -8/Materials (discovered 2 exits: *Fac / [*Sto]) -7/Factory History --------- Turn | Location | Event 16 | -11/Scrapyard | Discovered new exit (range 15) 96 | -11/Scrapyard | Entered Materials 117 | -10/Materials | Discovered new exit (range 15) 302 | -10/Materials | Build established: Mutant 456 | -10/Materials | Discovered new exit (range 14) 492 | -10/Materials | Discovered new exit (range 14) 795 | -10/Materials | Entered another Materials area 795 | -9/Materials | Evolved 2 slots: Utility x2 1082 | -9/Materials | Lost 4 parts (1p1n2w) 1232 | -9/Materials | Discovered new exit (range 16) 1284 | -9/Materials | Entered another Materials area 1284 | -8/Materials | Evolved 2 slots: Power x1, Utility x1 1359 | -8/Materials | Build established: Scavenger-Mutant 1404 | -8/Materials | Discovered new exit (range 12) 1646 | -8/Materials | Repaired Imp. Heat Sink 1708 | -8/Materials | Discovered new exit (range 10) 1739 | -8/Materials | Entered Factory 1739 | -7/Factory | Evolved 2 slots: Propulsion x1, Utility x1 1876 | -7/Factory | Garrison activated, responded to threat 2105 | -7/Factory | Build established: Scavenger-Skirmisher 2390 | -7/Factory | Lost 3 parts (1p2n) 2473 | -7/Factory | Core integrity fell below 50% 2480 | -7/Factory | Core integrity fell below 20% 2483 | -7/Factory | Destroyed by L-41 Fighter with Axe Last Messages --------------- L-41 Fighter knocked back. Flak Cannon severed. Plasma Cannon destroyed. L-41 Fighter knocked back. Arm. Wheel destroyed. L-41 Fighter suffers critical hit (Smash). Destroyed Imp. Deuterium Engine. L-41 Fighter system corrupted by crushing effect. Arm. Wheel destroyed. L-41 Fighter suffers critical hit (Smash). Destroyed Imp. Melee Analysis Suite. L-41 Fighter system corrupted by crushing effect. Imp. Heat Sink destroyed. Lgt. Nuclear Core severed. Imp. Deuterium Engine severed. Pressure Siphon disabled. Hvy. Missile Launcher destroyed. Power Maul severed. Map ----- +----------------------------------------------------+ | ###############################+### ????????? | | ????????? | | ???????? | | ???????? | | ???????? | | * ???????? | | ### ##+############ ##############+###??????????? | | ## #??##### ##?#???? ??????????????????? | | ?# #####?## #???#????? ? ??????????????? | | ## ####?## ###??#?? ????? ?????????????? | | ?## ######## ##?#?#?? "?"??? ????????????? | | ?# ######## ######## ?"" ???????????? ?? | | ### ! + + "?" ?????????? ?? | | ?## # #####? ? ????? ?????? | | ### # #?#?#? ??? ???? ?????? | | ??######"#### #####?#######?? ?? ???? | | ???##### #?## ##+##+####?###?#?#??#? ?????? ? | | #####?## #?## # #?#####???#???? ? ? ?? | | ?#????## ##?# # """"" ##??#?###?##? ? ??? ? ?? | | #?###?## #### # ""T"" ####???#??### ?? ? ? | | #?###### ##?# ?# + #####??##?? ??????? | | ??#?#?## ##?# # ! ! # #?????#??####??#####+ | | ?####### #### ##### ###?##??###?#?##?### | | ?##??# ## [ #?#???########### | | ???### ## = ############ | | #?#### ## """" "" @l # | | ??#?## ## """" "" ll ## | | ?###?# ## """" "" # "" ## | | ##?#### ### ## """ ####+ | | ?#?#?## ## """ "" ## F" ## | | ###???# ## """ " " ^""" ## " | | #???#?# ## """ """" "" ## " | | ????#?# ## ## " | | ?#?##?# ## ! ## | | ???#??# ## """"""""" ## | | ?#????# ## ###### """"""""" ##! | | ?####?# ## ############# """"""""" ##### | | ####### ## # !% # """"""""" #???# | | # # + "" | ] # """""""""*%#?#?? | | """ # # # ""S # """""""" *%##### | | """ + # "" """ + =[ ## | | """ # ####### """ # ! ## | | [ !# #?#?#?# """ # ######+###"#? | | #######??#??#! ! # #??????? ? | | ######??######################### ####??# ?? ? ? | | #?#?????#??????##????##?#?#???? #??#?# ??????? | | ???##???#??#??###?##????????#?# ##????#????? ??? | | ?#?????????????##???##?##??#??#####?????????????? | | ?#?????????????##????????#????#??##??#?##????????? | | ????##?????#???#?#?##?#??##??????##?????#? ??????? | +----------------------------------------------------+ Best States ------------- Heat Dissipation 48 Energy Generation 29 Energy Capacity 500 Matter Stores 300 Matter Capacity 300 Sight Range 18 Robot Scan Range 14 Terrain Scan Range 16 Terrain Scan Density 85 Evasion (%) 42 Recoil Reduction 2 Offensive Hacking 10 Item Schematics ----------------- Sensor Array | -8/Materials | Scanalyzed Robot Schematics ------------------ None Fabricated ------------ Nothing Alien Tech Used ----------------- None Achievements -------------- None Challenges ------------ None Game ------ Seed PoweredHugeSubcomponent Manual? 0 Play Time 00:27:00 Cumulative 7.5 hours Start 2024.05.27 @ 13:51:34 End 2024.05.27 @ 14:17:43 Sessions 1 Manual Loads 0 Difficulty Rogue Special Mode None Game No. 19 Rogue 19 Adventurer 0 Explorer 0 Win Type - Total 0 Types 0/0/0/0/0/0/0/0/0 Lore% 6 Gallery% 20 Achievement% 13 Wizard Run 0 Options --------- Layout 1 ASCII 0 Keyboard 0 Movement Mouse Keybinds 0 Fullscreen 1 Font 24/Smallcaps Map View 50x35 Zoom Use 0% Tactical HUD 0 Map Filters NONE Filters NONE Steam 1 RUN: 91b29a43-9764-42d5-829d-072b22a86c00